fUST/lending_fUST_20250628
["ID","MTS","AMOUNT","RATE_DAILY","PERIOD"]
[368223827,1751065856546,-3074.42,0.00021643,2]
[368223828,1751065856555,-769.53,0.00021643,2]
[368223829,1751065856564,-5277.78,0.00021643,2]
[368223830,1751065856573,-474.21,0.00021643,2]
[368223831,1751065856583,-4267.51,0.00021643,2]
[368223832,1751065856592,-4811.77,0.00021643,2]
[368223833,1751065856601,-798.42,0.00021643,2]
[368223834,1751065856611,-666.482233,0.00021643,2]
[368223835,1751065856621,-1474.96,0.00021643,2]
[368223836,1751065856631,-666.482233,0.00021643,2]
[368223837,1751065856640,-2026.53,0.00021643,2]
[368223838,1751065856651,-509.0,0.00021686,2]
[368223839,1751065856660,-501.34400268,0.00021714,2]
[368223840,1751065856669,-5888.0,0.00021752,2]
[368223841,1751065856679,-153.0,0.00021753,2]
[368223842,1751065856688,-500.0,0.00021765,2]
[368223843,1751065856697,-500.0,0.00021765,2]
[368223844,1751065856706,-500.0,0.00021765,2]
[368223845,1751065856715,-3000.0,0.000218,2]
[368223846,1751065856724,-2172.26551239,0.000218,2]
[368223847,1751065856733,-3000.0,0.0002181,2]
[368223848,1751065856742,-151.0,0.0002181,2]
[368223849,1751065856751,-151.0,0.0002181,2]
[368223850,1751065856761,-151.0,0.0002181,2]
[368223851,1751065856770,-151.0,0.0002181,2]
[368223852,1751065856779,-155.218412,0.0002181,2]
[368223853,1751065856788,-155.218412,0.0002181,2]
[368223854,1751065856797,-211.248514,0.0002181,2]
[368223855,1751065856807,-211.248514,0.0002181,2]
[368223856,1751065856817,-3000.0,0.0002182,2]
[368223857,1751065856826,-3000.0,0.0002183,2]
[368223858,1751065856835,-6171.16405456,0.00021831,6]
[368223859,1751065856844,-3000.0,0.0002184,2]
[368223860,1751065856854,-1349.0,0.00021842,2]
[368223861,1751065856864,-3000.0,0.0002185,2]
[368223862,1751065856873,-3000.0,0.0002186,2]
[368223863,1751065856882,-3000.0,0.0002187,2]
[368223864,1751065856895,-151.0,0.0002187,2]
[368223865,1751065856906,-151.0,0.0002187,2]
[368223866,1751065856915,-197.299865,0.0002187,2]
[368223867,1751065856924,-197.299865,0.0002187,2]
[368223868,1751065856935,-3000.0,0.0002188,2]
[368223869,1751065856945,-151.0,0.00021881,2]
[368223870,1751065856955,-226.097552,0.00021881,2]
[368223871,1751065856967,-226.097552,0.00021881,2]
[368223872,1751065856977,-1075.76135,0.00021881,2]
[368223873,1751065856986,-1075.76135,0.00021881,2]
[368223874,1751065856995,-500.0,0.00021882,2]
[368223875,1751065857004,-500.0,0.00021882,2]
[368223876,1751065857013,-200.0,0.0002189,4]
[368223877,1751065857023,-3000.0,0.0002189,2]
[368223878,1751065857033,-3000.0,0.000219,2]
[368223879,1751065857045,-2770.2,0.000219,2]
[368223880,1751065857055,-960.0,0.000219,2]
[368223881,1751065857065,-3000.0,0.0002191,2]
[368223882,1751065857075,-460.0,0.00021917,2]
[368223883,1751065857084,-3883.13150173,0.00021917,2]
[368223884,1751065857093,-152.176377,0.00021917,2]
[368223885,1751065857102,-151.0,0.00021917,2]
[368223886,1751065857112,-151.0,0.00021917,2]
[368223887,1751065857121,-309.310465,0.00021917,2]
[368223888,1751065857131,-309.310465,0.00021917,2]
[368223889,1751065857141,-911.73,0.00021917,2]
[368223890,1751065857151,-460.0,0.00021917,2]
[368223891,1751065857160,-460.0,0.00021917,2]
[368223892,1751065857170,-420.49,0.00021917,2]
[368223893,1751065857179,-460.0,0.00021917,2]
[368223894,1751065857188,-830.78,0.00021917,2]
[368223895,1751065857198,-544.3,0.00021917,2]
[368223896,1751065857207,-160.800168,0.00021917,2]
[368223897,1751065857217,-460.0,0.00021917,2]
[368223898,1751065857226,-302.443063,0.00021917,2]
[368223899,1751065857235,-302.443063,0.00021917,2]
[368223900,1751065857245,-197.086534,0.00021917,2]
[368223901,1751065857255,-460.0,0.00021917,2]
[368223902,1751065857264,-197.086534,0.00021917,2]
[368223903,1751065857273,-151.0,0.00021917,2]
[368223904,1751065857282,-151.0,0.00021917,2]
[368223905,1751065857292,-1474.12,0.00021917,2]
[368223906,1751065857301,-541.55,0.00021917,2]
[368223907,1751065857311,-810.75,0.00021917,2]
[368223908,1751065857320,-1637.76,0.00021917,2]
[368223909,1751065857329,-478.42,0.00021917,2]
[368223910,1751065857339,-151.0,0.00021917,2]
[368223911,1751065857349,-628.74,0.00021917,2]
[368223912,1751065857358,-802.8,0.00021917,2]
[368223913,1751065857368,-647.0,0.00021917,2]
[368223914,1751065857377,-579.37,0.00021917,2]
[368223915,1751065857387,-151.0,0.00021917,2]
[368223916,1751065857396,-460.0,0.00021917,2]
[368223917,1751065857406,-1362.19,0.00021917,2]
[368223918,1751065857415,-151.0,0.00021917,2]
[368223919,1751065857425,-151.0,0.00021917,2]
[368223920,1751065857434,-3303.04,0.00021917,2]
[368223921,1751065857443,-3178.06,0.00021917,2]
[368223922,1751065857452,-657.37,0.00021917,2]
[368223923,1751065857461,-3657.25,0.00021917,2]
[368223924,1751065857471,-812.08,0.00021917,2]
[368223925,1751065857480,-820.95,0.00021917,2]
[368223926,1751065857490,-460.0,0.00021917,2]
[368223927,1751065857499,-1081.13,0.00021917,2]
[368223928,1751065857508,-460.0,0.00021917,2]
[368223929,1751065857517,-1699.19,0.00021917,2]
[368223930,1751065857526,-723.75,0.00021917,2]
[368223931,1751065857535,-460.0,0.00021917,2]
[368223932,1751065857544,-634.47,0.00021917,2]
[368223933,1751065857553,-1211.98,0.00021917,2]
[368223934,1751065857563,-1908.44,0.00021917,2]
[368223935,1751065857572,-1749.43,0.00021917,2]
[368223936,1751065857581,-2897.42,0.00021917,2]
[368223937,1751065857591,-718.7,0.00021917,2]
[368223938,1751065857600,-575.24,0.00021917,2]
[368223939,1751065857610,-477.89,0.00021917,2]
[368223940,1751065857619,-632.23,0.00021917,2]
[368223941,1751065857628,-460.0,0.00021917,2]
[368223942,1751065857637,-881.62,0.00021917,2]
[368223943,1751065857647,-189.9996355,0.00021917,2]
[368223944,1751065857656,-744.19,0.00021917,2]
[368223945,1751065857665,-672.99,0.00021917,2]
[368223946,1751065857674,-460.0,0.00021917,2]
[368223947,1751065857684,-701.4,0.00021917,2]
[368223948,1751065857693,-1336.66,0.00021917,2]
[368223949,1751065857703,-2457.54,0.00021917,2]
[368223950,1751065857712,-1878.27,0.00021917,2]
[368223951,1751065857721,-2065.78,0.00021917,2]
[368223952,1751065857731,-1356.49,0.00021917,2]
[368223953,1751065857740,-617.09,0.00021917,2]
[368223954,1751065857749,-500.79,0.00021917,2]
[368223955,1751065857758,-946.99,0.00021917,2]
[368223956,1751065857768,-3074.42,0.00021917,2]
[368223957,1751065857778,-769.53,0.00021917,2]
[368223958,1751065857787,-5277.78,0.00021917,2]
[368223959,1751065857796,-474.21,0.00021917,2]
[368223960,1751065857805,-4267.51,0.00021917,2]
[368223961,1751065857814,-4811.77,0.00021917,2]
[368223962,1751065857825,-798.42,0.00021917,2]
[368223963,1751065857835,-1474.96,0.00021917,2]
[368223964,1751065857845,-2026.53,0.00021917,2]
[368223965,1751065857854,-3000.0,0.0002192,2]
[368223966,1751065857864,-3000.0,0.0002193,2]
[368223967,1751065857873,-3000.0,0.0002194,2]
[368223968,1751065857883,-3000.0,0.0002195,2]
[368223969,1751065857895,-338.73531,0.0002195,7]
[368223970,1751065857904,-3000.0,0.0002196,2]
[368223971,1751065857914,-151.0,0.00021966,4]
[368223972,1751065857923,-3000.0,0.0002197,2]
[368223973,1751065857934,-1000.0,0.00021973,2]
[368223974,1751065857943,-1200.0,0.00021973,2]
[368223975,1751065857952,-634.30227546,0.00021973,2]
[368223976,1751065857963,-3000.0,0.0002198,2]
[368223977,1751065857973,-3000.0,0.0002199,2]
[368223978,1751065857982,-151.0,0.0002199,7]
[368223979,1751065857991,-2798.66,0.00022,2]
[368223980,1751065858000,-9152.01,0.00022,7]
[368223981,1751065858009,-3000.0,0.00022,2]
[368223982,1751065858019,-213.75309343,0.00022,7]
[368223983,1751065858028,-160.0,0.00022,7]
[368223984,1751065858037,-12562.41216491,0.00022,7]
[368223985,1751065858048,-500.0,0.0002201,2]
[368223986,1751065858058,-1000.0,0.0002201,2]
[368223987,1751065858067,-1000.0,0.0002201,2]
[368223988,1751065858076,-3000.0,0.0002201,2]
[368223989,1751065858086,-3000.0,0.0002202,2]
[368223990,1751065858095,-3000.0,0.0002203,2]
[368223991,1751065858104,-3000.0,0.0002204,2]
[368223992,1751065858115,-3000.0,0.0002205,2]
[368223993,1751065858124,-151.0,0.0002205,7]
[368223994,1751065858133,-151.0,0.0002205,7]
[368223995,1751065858142,-350.704873,0.0002205,7]
[368223996,1751065858151,-350.704873,0.0002205,7]
[368223997,1751065858161,-3000.0,0.0002206,2]
[368223998,1751065858170,-3000.0,0.0002207,2]
[368223999,1751065858179,-1311.86365168,0.0002207,2]
[368224000,1751065858188,-317.0,0.00022072,3]
[368224001,1751065858197,-317.0,0.00022072,3]
[368224002,1751065858207,-317.0,0.00022072,3]
[368224003,1751065858217,-317.0,0.00022072,3]
[368224004,1751065858227,-151.0,0.00022072,7]
[368224005,1751065858236,-6171.16405456,0.00022072,6]
[368224006,1751065858245,-1000.0,0.00022074,2]
[368224007,1751065858255,-3000.0,0.0002208,2]
[368224008,1751065858265,-180.3394797,0.00022082,2]
[368224009,1751065858274,-3000.0,0.0002209,2]
[368224010,1751065858284,-5444.33417298,0.00022091,2]
[368224011,1751065858293,-3000.0,0.000221,2]
[368224012,1751065858303,-151.0,0.000221,7]
[368224013,1751065858312,-275.933794,0.000221,7]
[368224014,1751065858322,-666.482233,0.000221,7]
[368224015,1751065858331,-666.482233,0.000221,7]
[368224016,1751065858341,-3000.0,0.0002211,2]
[368224017,1751065858351,-3000.0,0.0002212,2]
[368224018,1751065858360,-3000.0,0.0002213,2]
[368224019,1751065858369,-215.0738,0.00022138,2]
[368224020,1751065858379,-3000.0,0.0002214,2]
[368224021,1751065858388,-3000.0,0.0002215,2]
[368224022,1751065858397,-3000.0,0.0002216,2]
[368224023,1751065858406,-3000.0,0.0002217,2]
[368224024,1751065858415,-3000.0,0.0002218,2]
[368224025,1751065858425,-5673.877968,0.0002219,2]
[368224026,1751065858434,-151.0,0.0002219,7]
[368224027,1751065858443,-21.4531322,0.0002219,7]
[368224028,1751065858725,-163.5468678,0.0002219,7]
[368224029,1751065858735,-154.54428,0.0002219,7]
[368224030,1751065858745,-154.54428,0.0002219,7]
[368224031,1751065858754,-230.65208357,0.00022191,2]
[368224032,1751065858764,-4587.38111835,0.00022191,2]
[368224033,1751065858773,-460.0,0.00022191,2]
[368224034,1751065858782,-151.0,0.00022191,7]
[368224035,1751065858791,-151.0,0.00022191,7]
[368224036,1751065858800,-911.73,0.00022191,2]
[368224037,1751065858810,-460.0,0.00022191,2]
[368224038,1751065858819,-460.0,0.00022191,2]
[368224039,1751065858830,-197.299865,0.00022191,7]
[368224040,1751065858840,-197.299865,0.00022191,7]
[368224041,1751065858849,-479.54424323,0.00022191,2]
[368224042,1751065858858,-830.78,0.00022191,2]
[368224043,1751065858868,-544.3,0.00022191,2]
[368224044,1751065858878,-460.0,0.00022191,2]
[368224045,1751065858889,-299.24278403,0.00022191,2]
[368224046,1751065859015,-558.44,0.00019178,2]
[368224047,1751065859024,-460.0,0.00019178,2]
[368224048,1751065859034,-558.44,0.00019452,2]
[368224049,1751065859043,-460.0,0.00019452,2]
[368224050,1751065859053,-78.12,0.00019726,2]
[368224051,1751065859064,-548.29,0.00019726,2]
[368224052,1751065859072,-263.18123828,0.00019726,2]
[368224053,1751065859084,-295.25876172,0.00019726,2]
[368224054,1751065859094,-619.85253822,0.0002,2]
[368224055,1751065859105,-6.55746178,0.0002,2]
[368224056,1751065859115,-558.44,0.0002,2]
[368224057,1751065859125,-626.41,0.00020273,2]
[368224058,1751065859134,-558.44,0.00020273,2]
[368224059,1751065859143,-626.41,0.00020547,2]
[368224060,1751065859153,-68.74253822,0.00020547,2]
[368224061,1751065859165,-489.69746178,0.00020547,2]
[368224062,1751065859174,-626.41,0.00020821,2]
[368224063,1751065859184,-415.34528916,0.00020821,2]
[368224064,1751065859415,-460.0,0.00019178,2]
[368224065,1751065859425,-460.0,0.00019178,2]
[368224066,1751065859434,-143.09471084,0.00020821,2]
[368224067,1751065859443,-626.41,0.00021095,2]
[368224068,1751065859452,-196.72451262,0.00021095,2]
[368224069,1751065859662,-254.77268796,0.00019178,2]
[368224070,1751065859674,-205.22731204,0.00019178,2]
[368224071,1751065859684,-460.0,0.00019178,2]
[368224072,1751065859693,-460.0,0.00019452,2]
[368224073,1751065859702,-460.0,0.00019452,2]
[368224074,1751065859711,-460.0,0.00019726,2]
[368224075,1751065859720,-460.0,0.00019726,2]
[368224076,1751065859729,-460.0,0.0002,2]
[368224077,1751065859738,-210.24,0.0002,2]
[368224078,1751065859747,-438.53,0.00020273,2]
[368224079,1751065859756,-361.71548738,0.00021095,2]
[368224080,1751065859765,-153.690437,0.00021095,2]
[368224081,1751065859774,-626.41,0.00021369,2]
[368224082,1751065859784,-558.44,0.00021369,2]
[368224083,1751065859793,-626.41,0.00021643,2]
[368224084,1751065859803,-558.44,0.00021643,2]
[368224085,1751065859812,-558.44,0.00021917,2]
[368224086,1751065859821,-626.41,0.00021917,2]
[368224087,1751065859830,-160.75721597,0.00022191,2]
[368224088,1751065859840,-541.55,0.00022191,2]
[368224089,1751065859849,-1637.76,0.00022191,2]
[368224090,1751065859858,-478.42,0.00022191,2]
[368224091,1751065859870,-628.74,0.00022191,2]
[368224092,1751065859880,-802.8,0.00022191,2]
[368224093,1751065859894,-66.18451296,0.00022191,2]
[368224094,1751065859906,-580.81548704,0.00022191,2]
[368224095,1751065859916,-579.37,0.00022191,2]
[368224096,1751065859926,-1362.19,0.00022191,2]
[368224097,1751065859935,-151.0,0.00022191,7]
[368224098,1751065859944,-226.097552,0.00022191,7]
[368224099,1751065859953,-226.097552,0.00022191,7]
[368224100,1751065859963,-699.56965194,0.00022191,2]
[368224101,1751065859974,-1578.6,0.00022191,2]
[368224105,1751066081290,413.741279,0.00013699,2]
[368224107,1751066662529,160.26247724,0.00018046,2]
[368224108,1751066742354,228.7101048,0.00018046,2]
[368224109,1751066751163,374.1002025,0.00023,30]
[368224110,1751066787577,211.1462642,0.00017932,2]
[368224111,1751066790246,164.91663402,0.00018046,2]
[368224112,1751066802906,400.0,0.00026099,60]
[368224115,1751066914391,360.0,0.00019,20]
[368224120,1751066930751,431.16674921,0.000181,2]
[368224187,1751067038369,-1200.0,0.00018144,2]
[368224188,1751067038379,-300.0,0.00018144,2]
[368224189,1751067038390,-1200.0,0.00018145,2]
[368224190,1751067038401,-657.06806738,0.00018145,2]
[368224191,1751067038411,-300.0,0.00018145,2]
[368224192,1751067038423,-300.0,0.00018145,2]
[368224193,1751067038432,-300.0,0.00018145,2]
[368224194,1751067038442,-300.0,0.00018145,2]
[368224195,1751067038452,-300.0,0.00018145,2]
[368224196,1751067038461,-500.0,0.00018145,2]
[368224197,1751067038471,-250.16357554,0.00018145,2]
[368224198,1751067038480,-178.96501656,0.00018145,2]
[368224199,1751067038490,-292.48977567,0.00018145,2]
[368224200,1751067038500,-500.0,0.00018145,2]
[368224201,1751067038509,-500.0,0.00018145,2]
[368224202,1751067038519,-500.0,0.00018145,2]
[368224203,1751067038529,-500.0,0.00018145,2]
[368224204,1751067038538,-500.0,0.00018145,2]
[368224205,1751067038549,-500.0,0.00018145,2]
[368224206,1751067038559,-239.6877,0.00018145,2]
[368224207,1751067038569,-500.0,0.00018145,2]
[368224208,1751067038579,-500.0,0.00018145,2]
[368224209,1751067038589,-500.0,0.00018145,2]
[368224210,1751067038599,-500.0,0.00018145,2]
[368224211,1751067038609,-500.0,0.00018145,2]
[368224212,1751067038619,-235.50341619,0.00018145,2]
[368224213,1751067038630,-435.18932208,0.00018145,2]
[368224214,1751067038639,-500.0,0.00018145,2]
[368224215,1751067038649,-500.0,0.00018145,2]
[368224216,1751067038659,-500.0,0.00018145,2]
[368224217,1751067038669,-500.0,0.00018145,2]
[368224218,1751067038679,-500.0,0.00018145,2]
[368224219,1751067038688,-500.0,0.00018145,2]
[368224220,1751067038698,-500.0,0.00018145,2]
[368224221,1751067038708,-500.0,0.00018145,2]
[368224222,1751067038717,-500.0,0.00018145,2]
[368224223,1751067038727,-500.0,0.00018145,2]
[368224224,1751067038737,-500.0,0.00018145,2]
[368224225,1751067038746,-500.0,0.00018145,2]
[368224226,1751067038756,-500.0,0.00018145,2]
[368224227,1751067038765,-500.0,0.00018145,2]
[368224228,1751067038775,-500.0,0.00018145,2]
[368224229,1751067038785,-500.0,0.00018145,2]
[368224230,1751067038795,-500.0,0.00018145,2]
[368224231,1751067038805,-500.0,0.00018145,2]
[368224232,1751067038815,-500.0,0.00018145,2]
[368224233,1751067038825,-500.0,0.00018145,2]
[368224234,1751067038835,-500.0,0.00018145,2]
[368224235,1751067038844,-500.0,0.00018145,2]
[368224236,1751067038854,-500.0,0.00018145,2]
[368224237,1751067038864,-500.0,0.00018145,2]
[368224238,1751067038873,-500.0,0.00018145,2]
[368224239,1751067038882,-500.0,0.00018145,2]
[368224240,1751067038892,-451.01167476,0.00018145,2]
[368224241,1751067038901,-500.0,0.00018145,2]
[368224242,1751067038910,-500.0,0.00018145,2]
[368224243,1751067038921,-500.0,0.00018145,2]
[368224244,1751067038930,-500.0,0.00018145,2]
[368224245,1751067038939,-500.0,0.00018145,2]
[368224246,1751067038949,-500.0,0.00018145,2]
[368224247,1751067038958,-500.0,0.00018145,2]
[368224248,1751067038968,-500.0,0.00018145,2]
[368224249,1751067038978,-445.25787056,0.00018145,2]
[368224250,1751067038987,-500.0,0.00018145,2]
[368224251,1751067038996,-500.0,0.00018145,2]
[368224252,1751067039006,-500.0,0.00018145,2]
[368224253,1751067039015,-500.0,0.00018145,2]
[368224254,1751067039024,-500.0,0.00018145,2]
[368224255,1751067039033,-500.0,0.00018145,2]
[368224256,1751067039042,-500.0,0.00018145,2]
[368224257,1751067039052,-500.0,0.00018145,2]
[368224258,1751067039061,-500.0,0.00018145,2]
[368224259,1751067039071,-500.0,0.00018145,2]
[368224260,1751067039081,-500.0,0.00018145,2]
[368224261,1751067039090,-500.0,0.00018145,2]
[368224262,1751067039100,-500.0,0.00018145,2]
[368224263,1751067039110,-500.0,0.00018145,2]
[368224264,1751067039119,-500.0,0.00018145,2]
[368224265,1751067039129,-500.0,0.00018145,2]
[368224266,1751067039139,-500.0,0.00018145,2]
[368224267,1751067039148,-500.0,0.00018145,2]
[368224268,1751067039157,-500.0,0.00018145,2]
[368224269,1751067039167,-500.0,0.00018145,2]
[368224270,1751067039176,-500.0,0.00018145,2]
[368224271,1751067039186,-500.0,0.00018145,2]
[368224272,1751067039195,-500.0,0.00018145,2]
[368224273,1751067039205,-500.0,0.00018145,2]
[368224274,1751067039214,-500.0,0.00018145,2]
[368224275,1751067039223,-500.0,0.00018145,2]
[368224276,1751067039233,-500.0,0.00018145,2]
[368224277,1751067039242,-500.0,0.00018145,2]
[368224278,1751067039252,-500.0,0.00018145,2]
[368224279,1751067039261,-500.0,0.00018145,2]
[368224280,1751067039270,-500.0,0.00018145,2]
[368224281,1751067039280,-500.0,0.00018145,2]
[368224282,1751067039288,-500.0,0.00018145,2]
[368224283,1751067039298,-500.0,0.00018145,2]
[368224284,1751067039307,-500.0,0.00018145,2]
[368224285,1751067039316,-500.0,0.00018145,2]
[368224286,1751067039327,-500.0,0.00018145,2]
[368224287,1751067039336,-500.0,0.00018145,2]
[368224288,1751067039345,-500.0,0.00018146,2]
[368224289,1751067039354,-50000.0,0.00018146,2]
[368224290,1751067039363,-160.0,0.00018147,2]
[368224291,1751067039372,-24900.0,0.00018147,2]
[368224292,1751067039381,-500.0,0.0001842,2]
[368224293,1751067039390,-500.0,0.00018694,2]
[368224294,1751067039399,-500.0,0.00018968,2]
[368224295,1751067039409,-11636.72331745,0.00019,20]
[368224296,1751067039421,-160.0,0.00019059,2]
[368224297,1751067039430,-341.25,0.00019067,3]
[368224298,1751067039440,-170.63,0.00019067,3]
[368224299,1751067039449,-511.89,0.00019067,3]
[368224300,1751067039458,-2771.75170985,0.00019078,2]
[368224301,1751067039468,-22535.50192161,0.00019078,2]
[368224302,1751067039478,-203.42,0.00019163,3]
[368224303,1751067039487,-610.29,0.00019163,3]
[368224304,1751067039496,-813.69,0.00019168,3]
[368224305,1751067039506,-406.85,0.00019168,3]
[368224306,1751067039515,-500.0,0.00019173,2]
[368224307,1751067039525,-500.0,0.00019173,2]
[368224308,1751067039534,-500.0,0.00019173,2]
[368224309,1751067039543,-500.0,0.00019173,2]
[368224310,1751067039554,-500.0,0.00019173,2]
[368224311,1751067039563,-500.0,0.00019173,2]
[368224312,1751067039573,-500.0,0.00019173,2]
[368224313,1751067039582,-458.91259767,0.00019173,2]
[368224314,1751067039591,-500.0,0.00019173,2]
[368224315,1751067039601,-500.0,0.00019173,2]
[368224316,1751067039611,-500.0,0.00019173,2]
[368224317,1751067039620,-500.0,0.00019173,2]
[368224318,1751067039629,-500.0,0.00019173,2]
[368224319,1751067039639,-500.0,0.00019173,2]
[368224320,1751067039649,-500.0,0.00019173,2]
[368224321,1751067039659,-500.0,0.00019173,2]
[368224322,1751067039668,-500.4688799,0.00019173,2]
[368224323,1751067039678,-413.02743098,0.00019173,2]
[368224324,1751067039687,-500.0,0.00019173,2]
[368224325,1751067039697,-500.0,0.00019173,2]
[368224326,1751067039707,-500.0,0.00019173,2]
[368224327,1751067039716,-512.70160682,0.00019173,2]
[368224328,1751067039725,-501.11637594,0.00019173,2]
[368224329,1751067039735,-500.0,0.00019173,2]
[368224330,1751067039744,-500.0,0.00019173,2]
[368224331,1751067039753,-500.0,0.00019173,2]
[368224332,1751067039763,-500.0,0.00019173,2]
[368224333,1751067039772,-502.55035468,0.00019173,2]
[368224334,1751067039781,-500.0,0.00019173,2]
[368224335,1751067039790,-500.0,0.00019173,2]
[368224336,1751067039800,-500.20967301,0.00019173,2]
[368224337,1751067039810,-500.0,0.00019173,2]
[368224338,1751067039820,-500.0,0.00019173,2]
[368224339,1751067039829,-500.0,0.00019173,2]
[368224340,1751067039838,-500.0,0.00019173,2]
[368224341,1751067039849,-503.04171577,0.00019173,2]
[368224342,1751067039858,-500.0,0.00019173,2]
[368224343,1751067039868,-500.0,0.00019173,2]
[368224344,1751067039877,-500.0,0.00019173,2]
[368224345,1751067039887,-500.0,0.00019177,2]
[368224346,1751067039897,-500.0,0.00019177,2]
[368224347,1751067039907,-378.13663617,0.00019177,2]
[368224348,1751067039916,-500.0,0.00019177,2]
[368224349,1751067039925,-500.0,0.00019177,2]
[368224350,1751067039935,-500.0,0.00019177,2]
[368224351,1751067039947,-500.0,0.00019177,2]
[368224352,1751067039956,-500.0,0.00019177,2]
[368224353,1751067039966,-500.0,0.00019177,2]
[368224354,1751067039975,-250.0,0.00019177,2]
[368224355,1751067039984,-415.63177093,0.00019178,2]
[368224356,1751067039994,-460.0,0.00019178,2]
[368224357,1751067040004,-460.0,0.00019178,2]
[368224358,1751067040014,-460.0,0.00019178,2]
[368224359,1751067040024,-460.83205486,0.00019178,2]
[368224360,1751067040034,-460.0,0.00019178,2]
[368224361,1751067040045,-460.0,0.00019178,2]
[368224362,1751067040055,-460.0,0.00019178,2]
[368224363,1751067040065,-460.60654219,0.00019178,2]
[368224364,1751067040075,-460.0,0.00019178,2]
[368224365,1751067040084,-460.0,0.00019178,2]
[368224367,1751067040094,-460.0,0.00019178,2]
[368224368,1751067040104,-460.0,0.00019178,2]
[368224369,1751067040115,-460.0,0.00019178,2]
[368224370,1751067040126,-460.0,0.00019178,2]
[368224371,1751067040135,-460.0,0.00019178,2]
[368224372,1751067040144,-460.0,0.00019178,2]
[368224373,1751067040154,-460.0,0.00019178,2]
[368224374,1751067040164,-460.0,0.00019178,2]
[368224375,1751067040174,-460.0,0.00019178,2]
[368224376,1751067040184,-460.0,0.00019178,2]
[368224377,1751067040194,-460.0,0.00019178,2]
[368224378,1751067040203,-460.0,0.00019178,2]
[368224379,1751067040214,-460.0,0.00019178,2]
[368224380,1751067040224,-410.81470254,0.00019178,2]
[368224381,1751067040233,-507.70626884,0.00019178,2]
[368224382,1751067040243,-460.0,0.00019178,2]
[368224383,1751067040252,-460.0,0.00019178,2]
[368224384,1751067040262,-460.0,0.00019178,2]
[368224385,1751067040271,-460.0,0.00019178,2]
[368224386,1751067040281,-460.0,0.00019178,2]
[368224387,1751067040290,-460.0,0.00019178,2]
[368224388,1751067040299,-460.0,0.00019178,2]
[368224389,1751067040309,-460.0,0.00019178,2]
[368224390,1751067040318,-460.0,0.00019178,2]
[368224391,1751067040328,-460.24682512,0.00019178,2]
[368224392,1751067040338,-460.0,0.00019178,2]
[368224393,1751067040347,-202.88,0.00019178,2]
[368224394,1751067040357,-601.81174642,0.00019178,2]
[368224395,1751067040367,-460.0,0.00019178,2]
[368224396,1751067040378,-460.0,0.00019178,2]
[368224397,1751067040390,-298.57962969,0.00019178,2]
[368224398,1751067040401,-460.0,0.00019178,2]
[368224399,1751067040413,-460.0,0.00019178,2]
[368224401,1751067040564,-460.0,0.00019178,2]
[368224402,1751067040580,-460.0,0.00019178,2]
[368224403,1751067040589,-453.61960535,0.00019178,2]
[368224404,1751067040599,-460.0,0.00019178,2]